bitfinex/quotes_ETHUSD_20250913
["timestamp","ask_amount","ask_price","bid_price","bid_amount"]
[1757769350343,11.59674607,4714.9,4714.8,0.001]
[1757769352076,12.05614607,4714.9,4714.8,0.001]
[1757769355882,11.64334607,4714.9,4714.8,0.001]
[1757769357268,11.76177934,4714.9,4714.8,0.001]
[1757769359798,7.07144607,4714.9,4714.8,0.001]
[1757769360775,6.69894607,4714.9,4714.8,0.001]
[1757769361405,7.17384607,4714.9,4714.8,0.001]
[1757769361601,7.29241567,4714.9,4714.8,0.001]
[1757769362175,7.29243087,4714.9,4714.8,0.001]
[1757769362804,6.81753087,4714.9,4714.8,0.001]
[1757769365413,7.11333087,4714.9,4714.8,0.001]
[1757769365733,8.04763087,4714.9,4714.8,0.001]
[1757769366113,7.29243087,4714.9,4714.8,0.001]
[1757769366942,6.81753087,4714.9,4714.8,0.001]
[1757769367246,6.6056566,4714.9,4714.8,0.001]
[1757769367440,6.29021093,4714.9,4714.8,0.001]
[1757769367744,6.03458522,4714.9,4714.8,0.001]
[1757769367944,2.51558522,4714.9,4714.8,0.001]
[1757769368125,6.03458522,4714.9,4714.8,0.001]
[1757769368744,2.51558522,4714.9,4714.8,0.3735]
[1757769369043,6.03458522,4714.9,4714.8,0.3735]
[1757769369242,5.83793807,4714.9,4714.8,0.3735]
[1757769369445,0.19800232,4714.9,4714.8,0.3735]
[1757769369643,3.71700232,4714.9,4714.8,0.3735]
[1757769370259,0.19800232,4714.9,4714.8,0.3735]
[1757769370423,0.30337592,4714.9,4714.8,0.3735]
[1757769371444,0.1056,4714.9,4714.8,0.3735]
[1757769372436,0.002,4715.0,4714.8,0.3735]
[1757769374650,0.002,4715.0,4714.9,0.02120935]
[1757769375147,0.002,4715.0,4714.9,0.39370935]
[1757769377051,0.002,4715.0,4714.9,0.3725]
[1757769380042,0.002,4715.0,4714.8,0.001]
[1757769387569,0.4372,4715.0,4714.8,0.001]
[1757769387939,1.2164,4714.9,4714.8,0.001]
[1757769388482,0.002,4715.0,4714.8,0.001]
[1757769389455,0.4352,4714.9,4714.8,0.001]
[1757769390058,0.002,4715.0,4714.8,0.001]
[1757769390388,0.7403,4714.9,4714.8,0.001]
[1757769390538,1.2164,4714.9,4714.8,0.001]
[1757769390739,0.002,4715.0,4714.8,0.001]
[1757769392569,0.4372,4715.0,4714.8,0.001]
[1757769393447,0.002,4715.0,4714.8,0.001]
[1757769394370,0.002,4715.0,4714.8,0.12831]
[1757769399196,0.4352,4714.9,4714.8,0.12831]
[1757769399764,0.002,4715.0,4714.8,0.12831]
[1757769400100,0.4352,4714.9,4714.8,0.12831]
[1757769403131,0.002,4715.0,4714.8,0.12831]
[1757769403314,0.002,4715.0,4714.9,0.42602138]
[1757769403495,0.002,4715.0,4714.9,0.02120935]
[1757769403693,0.002,4715.0,4714.8,0.12831]
[1757769403694,0.4372,4715.0,4714.8,0.12831]
[1757769403890,0.002,4715.0,4714.8,0.12831]
[1757769404296,0.002,4715.0,4714.9,0.02120935]
[1757769404620,0.002,4715.0,4714.8,0.12831]
[1757769405723,0.4481,4714.9,4714.8,0.12831]
[1757769407496,0.7334,4714.9,4714.8,0.12831]
[1757769408100,0.002,4715.0,4714.8,0.12831]
[1757769408546,1.2001,4714.9,4714.8,0.12831]
[1757769409564,0.7334,4714.9,4714.8,0.12831]
[1757769409736,0.002,4715.0,4714.8,0.1495198]
[1757769410539,0.002,4715.0,4714.8,0.12831]
[1757769411629,0.002,4715.0,4714.9,0.02120935]
[1757769412131,0.002,4715.0,4714.8,0.12831]
[1757769412642,0.4724,4715.0,4714.8,0.12831]
[1757769413555,0.4724,4715.0,4714.9,0.02120935]
[1757769413760,0.002,4715.0,4714.9,0.02120935]
[1757769413958,0.002,4715.0,4714.9,0.77792129]
[1757769415065,0.4724,4715.0,4714.9,0.77792129]
[1757769415570,0.7579,4715.0,4714.9,0.02120935]
[1757769415778,0.002,4715.0,4714.8,0.001]
[1757769416069,0.002,4715.0,4714.9,6.519]
[1757769416271,0.4724,4715.0,4714.9,6.519]
[1757769418799,0.002,4715.0,4714.9,6.519]
[1757769419159,0.002,4715.0,4714.9,7.26086]
[1757769421278,0.002,4715.0,4714.9,7.36646]
[1757769427480,1.2085,4715.0,4714.9,3.84746]
[1757769427788,1.2085,4715.0,4714.9,3.0]
[1757769428189,1.2085,4715.0,4714.9,6.518]
[1757769431380,0.002,4715.0,4714.9,6.518]
[1757769431584,1.2085,4715.0,4714.9,6.518]
[1757769432247,1.2085,4715.0,4714.9,3.0]
[1757769432436,1.2085,4715.0,4714.9,6.518]
[1757769433026,1.2085,4715.0,4714.9,3.0]
[1757769433355,1.2085,4715.0,4714.9,6.518]
[1757769442271,0.7579,4715.0,4714.9,6.518]
[1757769443176,0.002,4715.0,4714.9,6.518]
[1757769444142,0.002,4715.0,4714.9,7.18056]
[1757769445354,0.002,4715.0,4714.9,6.518]
[1757769450502,0.002,4715.0,4714.9,6.6236]
[1757769451677,0.002,4715.0,4714.9,7.4156]
[1757769453083,0.002,4715.0,4714.9,7.7881]
[1757769453277,0.002,4715.0,4714.9,8.2196]
[1757769453803,0.002,4715.0,4714.9,9.04176]
[1757769454499,0.002,4715.0,4714.9,8.66926]
[1757769456911,0.002,4715.0,4714.9,5.15126]
[1757769457119,0.002,4715.0,4714.9,8.66926]
[1757769457505,0.002,4715.0,4714.9,9.04176]
[1757769459112,0.002,4715.0,4714.9,8.66926]
[1757769460426,0.4335,4715.0,4714.9,8.66926]
[1757769462104,0.002,4715.0,4714.9,8.66926]
[1757769464409,0.7251,4715.0,4714.9,8.66926]
[1757769464636,0.002,4715.0,4714.9,8.66926]
[1757769465507,0.002,4715.0,4714.9,8.66826]
[1757769468606,0.7783,4715.0,4714.9,8.66826]
[1757769472270,0.7783,4715.0,4714.9,8.23676]
[1757769472566,0.4626,4715.0,4714.9,8.23676]
[1757769472768,0.002,4715.0,4714.9,8.23676]
[1757769474375,0.002,4715.0,4714.9,8.67616]
[1757769482993,0.4414,4715.0,4714.9,8.67616]
[1757769483392,0.4414,4715.0,4714.9,5.15916]
[1757769483594,0.4414,4715.0,4714.9,8.67616]
[1757769483894,0.754,4715.0,4714.9,8.67616]
[1757769484801,1.2046,4715.0,4714.9,8.23676]
[1757769486094,1.2046,4715.0,4714.9,4.71976]
[1757769486290,1.2046,4715.0,4714.9,8.23676]
[1757769487095,1.2046,4715.0,4714.9,4.71976]
[1757769487399,1.2046,4715.0,4714.9,8.23676]
[1757769492414,1.2046,4715.0,4714.9,4.71976]
[1757769492616,1.2046,4715.0,4714.9,8.23676]
[1757769497596,1.2046,4715.0,4714.9,9.86376]
[1757769497801,0.4414,4715.0,4714.9,9.86376]
[1757769498222,0.7553,4715.0,4714.9,9.86376]
[1757769498812,0.4414,4715.0,4714.9,9.86376]
[1757769499186,0.002,4715.0,4714.9,9.86376]
[1757769500417,0.002,4715.0,4714.9,10.33616]
[1757769500926,0.002,4715.5,4714.9,10.33616]
[1757769500927,0.002,4715.5,4715.0,3.792]
[1757769501127,0.002,4715.5,4715.2,0.792]
[1757769501307,0.002,4715.5,4715.4,3.8976]
[1757769501709,0.002,4715.9,4715.4,3.8976]
[1757769501710,0.002,4715.9,4715.5,0.792]
[1757769501910,0.002,4715.9,4715.2,0.4724]
[1757769501911,0.002,4715.9,4715.8,0.8976]
[1757769502113,0.002,4715.9,4715.8,9.8823653]
[1757769502304,0.002,4715.9,4715.8,9.86116]
[1757769502921,0.002,4715.9,4715.8,10.33356]
[1757769504506,0.4744,4715.9,4715.8,10.33356]
[1757769505313,0.002,4715.9,4715.8,10.33356]
[1757769509126,0.4744,4715.9,4715.8,10.43967699]
[1757769509727,0.4744,4715.9,4715.8,10.33356]
[1757769511444,0.7883,4715.9,4715.8,10.33356]
[1757769512945,0.7883,4715.9,4715.8,6.81756]
[1757769513126,0.7883,4715.9,4715.8,10.33356]
[1757769516176,0.002,4715.9,4715.8,10.33356]
[1757769516879,0.4744,4715.9,4715.8,10.33356]
[1757769519341,0.7883,4715.9,4715.8,9.86116]
[1757769523601,0.3159,4715.9,4715.8,9.86116]
[1757769523817,1.2771,4715.9,4715.8,9.86116]
[1757769524018,0.7883,4715.9,4715.8,9.86116]
[1757769524218,0.4744,4715.9,4715.8,9.86116]
[1757769525725,0.4744,4715.9,4715.8,6.34516]
[1757769525929,0.4744,4715.9,4715.8,9.86016]
[1757769527044,0.4744,4715.9,4715.8,6.34516]
[1757769527244,0.4744,4715.9,4715.8,9.86016]
[1757769528529,0.7775,4715.9,4715.8,9.86016]
[1757769528724,1.2335,4715.9,4715.8,9.86016]
[1757769528941,0.7775,4715.9,4715.8,9.86016]
[1757769537159,1.2291,4715.9,4715.8,9.86016]
[1757769537389,1.2291,4715.9,4715.8,6.34516]
[1757769537539,1.2291,4715.9,4715.8,3.0]
[1757769537865,1.2291,4715.9,4715.8,6.515]
[1757769541259,0.7775,4715.9,4715.8,7.307]
[1757769541778,0.002,4715.9,4715.8,7.307]
[1757769542072,0.002,4715.9,4715.8,8.0378]
[1757769542656,1.2273,4715.9,4715.8,4.5228]
[1757769542858,1.2273,4715.9,4715.8,8.0378]
[1757769543381,1.2273,4715.9,4715.8,3.792]
[1757769543582,1.2273,4715.9,4715.8,3.0]
[1757769543780,1.2273,4715.9,4715.8,6.515]
[1757769551361,1.2273,4715.9,4715.8,3.0]
[1757769551557,1.2273,4715.9,4715.8,6.515]
[1757769553893,1.2273,4715.9,4715.8,3.0]
[1757769554056,1.2273,4715.9,4715.8,6.515]
[1757769562208,1.2273,4715.9,4715.8,3.0]
[1757769562374,1.2273,4715.9,4715.8,6.515]
[1757769566304,0.002,4715.9,4715.8,8.13176]
[1757769566506,0.002,4715.9,4715.8,8.50426]
[1757769567278,0.002,4715.9,4715.8,8.58905435]
[1757769573227,0.002,4715.9,4715.8,8.21655435]
[1757769576324,0.002,4715.9,4715.8,8.32215435]
[1757769576513,0.002,4715.9,4715.8,8.23736]
[1757769584246,0.4546,4715.9,4715.8,8.23736]
[1757769585239,0.002,4715.9,4715.8,8.23736]
[1757769587539,0.4499,4715.9,4715.8,8.23736]
[1757769594157,0.002,4715.9,4715.8,8.23736]
[1757769601040,0.002,4715.9,4715.8,38.23736]
[1757769601745,0.002,4715.9,4715.8,38.69056]
[1757769602085,0.4552,4715.9,4715.8,35.17556]
[1757769602296,0.4552,4715.9,4715.8,38.68956]
[1757769604886,0.002,4715.9,4715.8,38.68956]
[1757769605188,0.002,4715.9,4715.8,39.32393249]
[1757769605370,0.002,4715.9,4715.8,41.22515801]
[1757769605771,0.002,4716.4,4715.9,3.792]
[1757769605980,0.002,4716.4,4716.1,3.792]
[1757769606279,0.002,4716.4,4716.3,3.792]
[1757769606451,0.002,4716.4,4716.3,33.792]
[1757769606847,0.002,4716.9,4716.3,34.87957249]
[1757769607071,0.002,4716.9,4716.5,3.792]
[1757769607271,0.002,4716.9,4716.7,3.792]
[1757769607471,0.002,4716.9,4716.8,37.32720081]
[1757769607755,0.002,4716.9,4716.8,7.306]
[1757769610689,0.7533,4716.9,4716.8,7.306]
[1757769611092,1.2369,4716.9,4716.8,7.306]
[1757769611258,1.2369,4716.9,4716.8,8.28456019]
[1757769613403,1.2369,4716.9,4716.8,4.77056019]
[1757769613687,1.2369,4716.9,4716.8,8.28356019]
[1757769615180,0.4552,4716.9,4716.8,8.28356019]
[1757769615491,0.002,4716.9,4716.8,8.28356019]
[1757769615868,0.002,4716.9,4716.8,8.38916019]
[1757769616657,0.002,4716.9,4716.8,4.87616019]
[1757769616857,1.2128,4716.9,4716.8,8.38916019]
[1757769617990,0.4676,4716.9,4716.8,8.38916019]
[1757769621435,0.002,4716.9,4716.8,38.38916019]
[1757769623614,0.002,4717.4,4716.9,3.792]
[1757769623828,0.002,4717.4,4717.1,3.792]
[1757769624017,0.002,4717.9,4717.4,0.792]
[1757769624219,0.002,4717.9,4717.6,3.792]
[1757769624385,0.002,4717.9,4717.8,3.8976]
[1757769624585,0.4544,4718.7,4717.8,37.4106]
[1757769624586,0.4656,4718.5,4717.8,37.4106]
[1757769624817,0.4656,4718.5,4718.0,3.792]
[1757769625112,0.4656,4718.5,4717.9,30.72099758]
[1757769625113,0.4656,4718.5,4718.4,0.1056]
[1757769625318,0.7584,4718.5,4718.4,8.26579362]
[1757769625518,0.7584,4718.5,4718.4,8.2446]
[1757769625715,0.002,4718.7,4718.5,3.792]
[1757769625919,0.002,4718.7,4718.6,7.305]
[1757769626222,0.002,4718.9,4718.7,3.792]
[1757769626517,0.002,4718.9,4718.7,33.81319227]
[1757769626718,0.002,4718.9,4718.7,33.8976]
[1757769626921,0.002,4719.2,4718.9,3.792]
[1757769627108,0.002,4719.2,4719.0,39.46489719]
[1757769627489,0.002,4719.2,4719.0,39.57049719]
[1757769627905,0.002,4719.7,4719.0,39.57049719]
[1757769628106,0.002,4719.7,4719.1,33.81319048]
[1757769628426,0.19724422,4722.1,4719.1,33.81319048]
[1757769628427,0.4656,4720.5,4719.7,0.792]
[1757769628628,0.4656,4720.5,4720.0,0.792]
[1757769628828,0.1056,4721.7,4719.8,35.139]
[1757769628829,0.918,4720.4,4720.2,3.792]
[1757769629030,0.7584,4720.3,4720.2,0.792]
[1757769629214,1.2108,4720.3,4720.2,4.4106]
[1757769629414,1.2108,4720.3,4720.2,8.04594083]
[1757769630340,1.2108,4720.3,4720.2,4.53294083]
[1757769630542,1.2108,4720.3,4720.2,8.04494083]
[1757769631110,1.2108,4720.3,4720.2,3.74094083]
[1757769631311,1.33188,4720.3,4720.2,6.6176]
[1757769631835,1.2108,4720.3,4720.2,6.6176]
[1757769633113,1.2108,4720.3,4720.2,3.0]
[1757769633310,1.2108,4720.3,4720.2,6.513]
[1757769634131,1.2108,4720.3,4720.2,3.0]
[1757769634436,1.2108,4720.3,4720.2,6.513]
[1757769636049,1.2128,4720.3,4720.2,6.513]
[1757769637323,1.34464,4720.3,4720.2,6.513]
[1757769637525,1.34464,4720.3,4718.4,1.22451136]
[1757769637526,1.34464,4720.3,4717.8,3.0]
[1757769637860,2.11877387,4719.8,4718.9,0.63560063]
[1757769638060,3.03678281,4719.7,4719.1,3.0]
[1757769638265,0.2928,4719.2,4718.4,1.625]
[1757769638424,0.2928,4719.2,4718.7,0.63561814]
[1757769638425,0.918,4719.1,4718.7,0.63561814]
[1757769638629,2.11878281,4719.7,4718.7,0.63561814]
[1757769638630,0.2928,4718.8,4718.7,0.63561814]
[1757769638954,1.2108,4718.8,4718.7,3.63561814]
[1757769639160,1.2108,4718.8,4718.7,4.14861814]
[1757769640133,1.2108,4718.8,4718.7,0.63561814]
[1757769640458,1.2108,4718.8,4718.7,3.513]
[1757769642064,1.2108,4718.8,4718.6,0.63561814]
[1757769642228,0.918,4718.7,4718.4,1.625]
[1757769642563,3.03723232,4718.7,4718.5,2.021]
[1757769642788,0.918,4718.6,4718.5,2.021]
[1757769642991,1.2108,4718.6,4718.4,1.625]
[1757769643175,1.051188,4718.5,4718.4,5.139]
[1757769643367,1.343988,4718.5,4718.2,3.514]
[1757769643683,0.918,4718.4,4718.2,3.514]
[1757769643885,0.133188,4718.5,4718.3,3.0]
[1757769644258,0.2928,4718.4,4718.3,3.0]
[1757769644588,1.2108,4718.4,4718.1,3.514]
[1757769644886,2.11954279,4718.0,4717.6,1.625]
[1757769645209,0.2928,4717.7,4717.4,3.514]
[1757769645501,0.4673,4717.6,4717.5,1.70119766]
[1757769645786,0.4673,4717.6,4717.5,1.68]
[1757769646157,0.764,4717.6,4717.5,1.68]
[1757769646476,0.4673,4717.6,4717.5,1.68]
[1757769646680,1.2381,4717.6,4717.5,1.68]
[1757769647503,1.2381,4717.6,4717.5,3.0]
[1757769648156,0.2967,4717.6,4717.5,3.0]
[1757769648392,2.11845955,4720.5,4717.5,3.0]
[1757769648393,0.4707,4717.9,4717.5,3.0]
[1757769648558,0.4677,4717.8,4717.5,3.0]
[1757769648759,0.4677,4717.7,4717.5,3.0]
[1757769649269,0.4677,4717.7,4717.4,0.1056]
[1757769649586,0.4677,4717.7,4717.6,3.0]
[1757769650062,0.4677,4717.7,4717.4,0.1056]
[1757769650266,0.4707,4717.9,4717.7,3.0]
[1757769650593,1.2264,4717.8,4717.6,3.521]
[1757769650797,0.9384,4717.7,4717.6,3.0]
[1757769650988,1.2264,4717.7,4717.6,3.0]
[1757769652202,0.4677,4718.2,4717.6,3.0]
[1757769652501,0.5733,4718.1,4717.6,3.0]
[1757769652697,0.288,4717.7,4717.6,3.0]
[1757769652866,0.7557,4717.7,4717.6,3.0]
[1757769653066,1.2264,4717.7,4717.6,3.0]
[1757769655398,0.1056,4718.1,4717.6,3.0]
[1757769655597,0.5733,4718.1,4717.6,3.0]
[1757769655799,0.4677,4718.0,4717.6,3.0]
[1757769656098,0.9384,4717.9,4717.6,3.0]
[1757769656305,0.288,4717.7,4717.6,3.0]
[1757769656503,0.7557,4717.7,4717.6,3.0]
[1757769657004,1.2264,4717.7,4717.6,3.0]
[1757769657811,0.7557,4717.7,4717.6,3.0]
[1757769658213,0.7557,4717.7,4717.6,3.522]
[1757769658514,0.4677,4717.7,4717.6,3.522]
[1757769658698,1.044,4718.1,4717.6,3.522]
[1757769658899,0.4677,4718.0,4717.6,3.522]
[1757769659079,0.9384,4718.0,4717.6,3.522]
[1757769659282,0.4677,4717.9,4717.6,3.522]
[1757769659483,0.4677,4717.8,4717.5,0.001]
[1757769659684,0.4677,4717.8,4717.6,3.522]
[1757769659882,0.4677,4717.7,4717.6,3.522]
[1757769660417,0.4677,4718.0,4717.6,3.522]
[1757769660724,0.4677,4717.9,4717.7,0.02119676]
[1757769660893,0.4677,4717.9,4717.7,3.02119676]
[1757769661308,0.4677,4717.8,4717.7,3.0]
[1757769661908,0.5763,4718.1,4717.7,3.0]
[1757769662116,0.4677,4718.0,4717.7,3.0]
[1757769662620,0.5763,4718.1,4717.8,3.522]
[1757769662789,0.1056,4718.1,4717.8,3.522]
[1757769662985,0.5733,4718.1,4717.8,3.522]
[1757769663623,0.4677,4718.1,4717.8,3.522]
[1757769663822,0.4677,4718.9,4717.9,3.02119587]
[1757769664128,0.4677,4718.9,4717.9,5.01969587]
[1757769664325,0.4677,4718.9,4717.9,4.9985]
[1757769664544,0.4677,4718.9,4718.0,0.02119542]
[1757769664738,0.4677,4718.9,4718.2,3.0]
[1757769664945,0.4677,4718.9,4718.3,0.02119407]
[1757769668991,0.4707,4718.8,4718.2,3.0]
[1757769669249,0.4677,4718.7,4718.2,3.0]
[1757769669406,0.4677,4718.6,4718.2,3.0]
[1757769669742,0.4677,4718.5,4718.2,3.0]
[1757769670038,0.4677,4718.4,4718.2,3.0]
[1757769670260,1.2264,4718.3,4718.1,0.89066752]
[1757769670525,0.4677,4718.5,4718.2,3.521]
[1757769670690,0.4677,4718.5,4718.3,3.0]
[1757769671522,0.4707,4719.1,4718.3,3.0]
[1757769671718,0.9384,4719.0,4718.3,3.0]
[1757769671906,0.9384,4718.9,4718.3,3.0]
[1757769672110,0.4677,4718.8,4718.3,3.0]
[1757769672631,2.12078622,4719.7,4717.9,1.626]
[1757769672632,0.288,4718.4,4717.9,1.626]
[1757769672836,0.288,4718.4,4718.1,3.0]
[1757769673037,0.9384,4718.3,4718.1,3.0]
[1757769673208,1.2264,4718.2,4718.1,3.0]
[1757769673627,1.2264,4718.2,4718.1,3.521]
[1757769674034,0.7557,4718.2,4718.1,3.521]
[1757769674840,0.7557,4718.2,4718.1,6.521]
[1757769675136,1.2264,4718.2,4718.1,6.521]
[1757769676202,1.2264,4718.2,4717.9,1.626]
[1757769676404,0.9353,4718.1,4718.0,3.02]
[1757769676635,1.2388,4718.1,4718.0,3.02]
[1757769678845,0.4719,4718.1,4718.0,3.02]
[1757769679045,0.7754,4718.1,4718.0,3.02]
[1757769679540,3.9428548,4719.3,4718.0,3.02]
[1757769679731,0.4719,4718.5,4718.0,3.02]
[1757769679928,0.4719,4718.4,4718.0,3.02]
[1757769680130,0.4719,4718.6,4718.0,3.02]
[1757769680352,0.4634,4718.7,4718.0,3.02]
[1757769680555,0.4634,4718.7,4718.1,3.02119497]
[1757769680729,0.9353,4718.7,4718.2,0.7667195]
[1757769680932,0.9353,4718.7,4718.3,3.521]
[1757769680933,0.4719,4718.6,4718.3,3.521]
[1757769681133,0.4719,4718.5,4718.3,3.521]
[1757769681594,0.002,4719.7,4718.3,3.521]
[1757769681730,0.9353,4719.1,4718.3,3.521]
[1757769681937,0.4719,4719.0,4718.3,3.521]
[1757769682469,0.4634,4719.1,4718.3,3.521]
[1757769682470,0.4719,4718.9,4718.3,3.521]
[1757769683269,0.4719,4718.9,4718.4,3.0]
[1757769683587,0.9353,4719.1,4718.4,3.67541316]
[1757769684663,0.4719,4719.1,4718.4,3.67541316]
[1757769685064,0.002,4719.7,4718.4,3.67541316]
[1757769685065,0.4719,4719.2,4718.4,3.67541316]
[1757769685269,0.4719,4719.2,4718.4,3.65421954]
[1757769685471,0.4654,4719.7,4718.5,0.39369317]
[1757769685767,0.9373,4719.7,4718.7,3.0]
[1757769685968,0.9373,4719.7,4718.8,1.64719182]
[1757769686169,0.9373,4719.7,4719.0,3.0]
[1757769686373,0.9373,4719.7,4719.1,0.1056]
[1757769686679,0.9373,4719.7,4719.3,3.0]
[1757769686970,0.4719,4719.6,4719.3,3.0]
[1757769687357,0.002,4719.7,4719.3,3.0]
[1757769687535,0.002,4719.7,4719.4,0.12678913]
[1757769687736,0.002,4719.7,4719.6,3.0]
[1757769695422,0.4739,4719.7,4719.6,3.0]
[1757769698793,0.002,4719.7,4719.6,3.0]
[1757769699208,0.002,4719.7,4719.6,3.12678823]
[1757769699412,0.002,4719.7,4719.6,3.89497305]
[1757769699611,0.002,4719.7,4719.6,4.26747305]
[1757769701318,0.002,4719.7,4719.6,3.89497305]
[1757769703004,0.002,4719.7,4719.6,4.26747305]
[1757769703596,0.002,4719.7,4719.6,3.87378482]
[1757769705124,0.002,4719.7,4719.6,6.6226]
[1757769708411,0.002,4719.7,4719.6,6.6236]
[1757769711732,0.002,4719.7,4719.6,3.1066]
[1757769711932,0.002,4719.7,4719.6,6.6226]
[1757769714442,0.002,4719.7,4719.6,36.6226]
[1757769714750,0.002,4719.7,4719.6,38.78249719]
[1757769716859,0.4301,4719.7,4719.6,38.78249719]
[1757769717417,0.4301,4719.7,4719.6,38.78149719]
[1757769718266,0.7465,4719.7,4719.6,35.26649719]
[1757769718473,0.4301,4719.7,4719.6,38.78149719]
[1757769722981,0.002,4719.7,4719.6,38.77949719]
[1757769723139,0.4301,4719.7,4719.6,38.77949719]
[1757769730071,1.2057,4719.7,4719.6,8.67389719]
[1757769730393,1.2057,4719.7,4719.6,0.001]
[1757769730592,1.2057,4719.7,4719.1,2.36474824]
[1757769730593,1.2057,4719.7,4719.5,3.516]
[1757769730898,0.8873,4719.6,4719.5,3.516]
[1757769731063,1.2037,4719.6,4719.5,3.516]
[1757769731465,1.2037,4719.6,4719.5,6.516]
[1757769731861,1.2037,4719.6,4719.5,3.0]
[1757769732067,1.32427,4719.6,4719.5,6.515]
[1757769732267,1.2037,4719.6,4719.5,6.515]
[1757769732668,1.2037,4719.6,4719.5,3.515]
[1757769732870,1.2037,4719.6,4719.1,0.001]
[1757769733176,1.2037,4719.6,4719.3,3.0]
[1757769733387,0.8873,4719.5,4719.4,3.259]
[1757769733572,1.32427,4719.5,4719.1,0.001]
[1757769733898,1.32427,4719.5,4719.2,3.515]
[1757769734075,0.8873,4719.4,4719.2,3.515]
[1757769734275,1.2037,4719.3,4719.2,3.515]
[1757769734601,1.2037,4719.3,4719.1,0.001]
[1757769734799,0.34431912,4719.2,4719.1,0.001]
[1757769735204,1.54801912,4719.2,4719.1,0.001]
[1757769735900,1.2037,4719.2,4719.1,0.001]
[1757769736067,3.32270322,4719.2,4719.1,0.001]
[1757769736503,1.2037,4719.2,4719.1,0.001]
[1757769737411,3.32270322,4719.2,4719.1,0.001]
[1757769738325,1.2037,4719.2,4719.1,0.001]
[1757769738477,0.12057,4719.5,4719.1,1.444]
[1757769738478,0.4547,4719.5,4719.1,1.444]
[1757769738679,0.458,4719.4,4719.1,1.72087249]
[1757769738880,0.3074,4719.2,4719.1,1.444]
[1757769739105,0.7654,4719.2,4719.1,3.389]
[1757769739693,0.7654,4719.2,4719.1,3.527]
[1757769739891,0.88741,4719.2,4719.1,3.527]
[1757769740079,0.88741,4719.2,4719.1,0.001]
[1757769741023,1.34211,4719.2,4719.1,0.001]
[1757769742114,3.46111322,4719.2,4719.1,0.001]
[1757769744622,3.54588727,4719.2,4719.1,0.001]
[1757769750622,3.46111322,4719.2,4719.1,0.001]
[1757769751531,4.86811,4719.2,4719.1,0.001]
[1757769752644,6.98711322,4719.2,4719.1,0.001]
[1757769753518,4.86811,4719.2,4719.1,0.001]
[1757769753748,3.64801,4719.2,4719.1,0.001]
[1757769754448,4.10601,4719.2,4719.1,0.001]
[1757769755517,4.41341,4719.2,4719.1,0.001]
[1757769757635,4.86811,4719.2,4719.1,0.001]
[1757769757821,0.12201,4719.2,4719.1,0.001]
[1757769758036,0.002,4719.6,4719.1,0.001]
[1757769758245,0.458,4719.5,4719.1,0.001]
[1757769758921,0.1056,4719.3,4719.1,0.001]
[1757769767459,0.5772,4719.3,4719.1,0.001]
[1757769768051,0.1056,4719.3,4719.1,0.001]
[1757769769376,0.4752,4719.6,4719.2,0.4781]
[1757769769377,0.002,4719.6,4719.2,0.4781]
[1757769771246,0.002,4719.6,4719.2,0.1056]
[1757769771444,0.4752,4719.6,4719.2,0.1056]
[1757769773767,0.002,4719.6,4719.2,0.1056]
[1757769774849,0.4752,4719.6,4719.2,0.1056]
[1757769775678,0.002,4719.6,4719.2,0.1056]
[1757769776160,0.4752,4719.6,4719.2,0.1056]
[1757769777080,0.002,4719.6,4719.2,0.1056]
[1757769778158,0.4752,4719.6,4719.2,0.1056]
[1757769778888,0.4732,4719.5,4719.2,0.1056]
[1757769782767,0.002,4719.6,4719.2,0.1056]
[1757769783157,0.4732,4719.5,4719.2,0.1056]
[1757769783358,0.002,4719.6,4719.2,0.1056]
[1757769783859,0.002,4719.6,4719.1,0.001]
[1757769783860,0.002,4719.6,4719.5,0.1056]
[1757769785962,0.4752,4719.6,4719.5,0.1056]
[1757769786474,0.7764,4719.6,4719.5,0.1056]
[1757769786868,1.2747,4719.6,4719.5,0.1056]
[1757769787062,1.40237,4719.6,4719.1,1.626]
[1757769787263,0.9715,4719.5,4719.1,1.626]
[1757769787676,0.3012,4719.2,4719.1,1.626]
[1757769787881,1.2727,4719.2,4719.1,1.626]
[1757769789062,0.4752,4719.6,4719.1,1.626]
[1757769789295,0.002,4719.6,4719.1,1.626]
[1757769789677,0.4732,4719.5,4719.1,1.626]
[1757769789872,0.002,4719.6,4719.1,1.626]
[1757769790077,0.4732,4719.4,4719.1,1.626]
[1757769790278,0.002,4719.6,4719.2,0.02119003]
[1757769790566,0.4752,4719.6,4719.2,0.12679003]
[1757769790773,0.002,4719.6,4719.2,0.12679003]
[1757769790978,0.4732,4719.5,4719.2,0.12679003]
[1757769791905,0.4732,4719.4,4719.2,0.12679003]
[1757769792310,0.002,4719.6,4719.2,0.12679003]
[1757769792781,0.4752,4719.6,4719.2,0.12679003]
[1757769793187,0.002,4719.6,4719.2,0.12679003]